fUSD/lending_fUSD_20260106
["ID","MTS","AMOUNT","RATE_DAILY","PERIOD"]
[400597920,1767738648209,-200.0,0.00039433,2]
[400597921,1767738648219,-200.0,0.00039433,2]
[400597922,1767738648229,-200.0,0.00039433,2]
[400597923,1767738648239,-200.0,0.00039433,2]
[400597924,1767738648248,-200.0,0.00039433,2]
[400597925,1767738648258,-200.0,0.00039433,2]
[400597926,1767738648267,-200.0,0.00039433,2]
[400597927,1767738648277,-200.0,0.00039433,2]
[400597928,1767738648286,-200.0,0.00039433,2]
[400597929,1767738648296,-200.0,0.00039433,2]
[400597930,1767738648305,-200.0,0.00039433,2]
[400597931,1767738648314,-200.0,0.00039433,2]
[400597932,1767738648323,-200.0,0.00039433,2]
[400597933,1767738648333,-200.0,0.00039433,2]
[400597934,1767738648343,-200.0,0.00039433,2]
[400597935,1767738648352,-200.0,0.00039433,2]
[400597936,1767738648362,-200.0,0.00039433,2]
[400597937,1767738648372,-200.0,0.00039433,2]
[400597938,1767738648382,-200.0,0.00039433,2]
[400597939,1767738648391,-200.0,0.00039433,2]
[400597940,1767738648400,-200.0,0.00039433,2]
[400597941,1767738648410,-170.0,0.00039433,2]
[400597942,1767738648420,-200.0,0.00039433,2]
[400597943,1767738648430,-200.0,0.00039433,2]
[400597944,1767738648439,-200.0,0.00039433,2]
[400597945,1767738648449,-200.0,0.00039433,2]
[400597946,1767738648459,-200.0,0.00039433,2]
[400597947,1767738648469,-200.0,0.00039433,2]
[400597948,1767738648483,-200.0,0.00039433,2]
[400597949,1767738648493,-200.0,0.00039433,2]
[400597950,1767738648503,-200.0,0.00039433,2]
[400597951,1767738648512,-200.0,0.00039433,2]
[400597952,1767738648522,-200.0,0.00039433,2]
[400597953,1767738648531,-200.0,0.00039433,2]
[400597954,1767738648540,-200.0,0.00039433,2]
[400597955,1767738648550,-200.0,0.00039433,2]
[400597956,1767738648559,-200.0,0.00039433,2]
[400597957,1767738648568,-800.0,0.00039433,13]
[400597958,1767738648577,-800.0,0.00039433,13]
[400597959,1767738648587,-800.0,0.00039433,13]
[400597960,1767738648596,-800.0,0.00039433,13]
[400597961,1767738648605,-800.0,0.00039433,13]
[400597962,1767738648614,-800.0,0.00039433,13]
[400597963,1767738648625,-800.0,0.00039433,13]
[400597964,1767738648639,-800.0,0.00039433,13]
[400597965,1767738648648,-800.0,0.00039433,13]
[400597966,1767738648658,-800.0,0.00039433,13]
[400597967,1767738648668,-800.0,0.00039433,13]
[400597968,1767738648678,-800.0,0.00039433,13]
[400597969,1767738648688,-800.0,0.00039433,13]
[400597970,1767738648697,-800.0,0.00039433,13]
[400597971,1767738648707,-800.0,0.00039433,13]
[400597972,1767738648716,-800.0,0.00039433,13]
[400597973,1767738648726,-800.0,0.00039433,13]
[400597974,1767738648735,-800.0,0.00039433,13]
[400597975,1767738648743,-800.0,0.00039433,13]
[400597976,1767738648752,-800.0,0.00039433,13]
[400597977,1767738648761,-800.0,0.00039433,13]
[400597978,1767738648770,-800.0,0.00039433,13]
[400597979,1767738648779,-800.0,0.00039433,13]
[400597980,1767738648788,-800.0,0.00039433,13]
[400597981,1767738648798,-800.0,0.00039433,13]
[400597982,1767738648807,-800.0,0.00039433,13]
[400597983,1767738648817,-800.0,0.00039433,13]
[400597984,1767738648827,-800.0,0.00039433,13]
[400597985,1767738648838,-800.0,0.00039433,13]
[400597986,1767738648847,-800.0,0.00039433,13]
[400597987,1767738648856,-800.0,0.00039433,13]
[400597988,1767738648865,-800.0,0.00039433,13]
[400597989,1767738648875,-800.0,0.00039433,13]
[400597990,1767738648884,-800.0,0.00039433,13]
[400597991,1767738648894,-800.0,0.00039433,13]
[400597992,1767738648903,-800.0,0.00039433,13]
[400597993,1767738648913,-800.0,0.00039433,13]
[400597994,1767738648922,-800.0,0.00039433,13]
[400597995,1767738648931,-800.0,0.00039433,13]
[400597996,1767738648940,-800.0,0.00039433,13]
[400597997,1767738648949,-800.0,0.00039433,13]
[400597998,1767738648959,-800.0,0.00039433,13]
[400597999,1767738648968,-800.0,0.00039433,13]
[400598000,1767738648978,-800.0,0.00039433,13]
[400598001,1767738648988,-800.0,0.00039433,13]
[400598002,1767738648997,-800.0,0.00039433,13]
[400598003,1767738649006,-800.0,0.00039433,13]
[400598004,1767738649015,-800.0,0.00039433,13]
[400598005,1767738649024,-800.0,0.00039433,13]
[400598006,1767738649034,-800.0,0.00039433,13]
[400598007,1767738649046,-800.0,0.00039433,13]
[400598008,1767738649055,-800.0,0.00039433,13]
[400598009,1767738649064,-800.0,0.00039433,13]
[400598010,1767738649073,-800.0,0.00039433,13]
[400598011,1767738649083,-800.0,0.00039433,13]
[400598012,1767738649092,-800.0,0.00039433,13]
[400598013,1767738649101,-800.0,0.00039433,13]
[400598014,1767738649111,-800.0,0.00039433,13]
[400598015,1767738649120,-382.0,0.00039433,13]
[400598016,1767738649129,-800.0,0.00039433,13]
[400598017,1767738649138,-800.0,0.00039433,13]
[400598018,1767738649147,-800.0,0.00039433,13]
[400598019,1767738649156,-800.0,0.00039433,13]
[400598020,1767738649166,-800.0,0.00039433,13]
[400598021,1767738649303,-800.0,0.00039433,13]
[400598022,1767738649315,-800.0,0.00039433,13]
[400598023,1767738649325,-800.0,0.00039433,13]
[400598024,1767738649335,-800.0,0.00039433,13]
[400598025,1767738649344,-800.0,0.00039433,13]
[400598026,1767738649355,-800.0,0.00039433,13]
[400598027,1767738649364,-800.0,0.00039433,13]
[400598028,1767738649373,-800.0,0.00039433,13]
[400598029,1767738649383,-251.0,0.00039433,13]
[400598030,1767738649393,-1266.0,0.00039462,2]
[400598031,1767738649402,-433.0,0.00039462,2]
[400598032,1767738649412,-914.0,0.00039462,2]
[400598033,1767738649422,-1200.0,0.00039462,2]
[400598034,1767738649432,-614.0,0.00039462,2]
[400598035,1767738649441,-1329.0,0.00039462,2]
[400598036,1767738649451,-2435.0,0.00039462,2]
[400598037,1767738649460,-758.4462,0.00039488,30]
[400598038,1767738649470,-160.0,0.000395,30]
[400598039,1767738649479,-167.87682571,0.00039647,2]
[400598040,1767738649488,-758.4462,0.00039688,30]
[400598041,1767738649498,-1163.55,0.000397,14]
[400598042,1767738649507,-166.66,0.0003982,30]
[400598043,1767738649516,-758.4462,0.00039888,30]
[400598044,1767738649526,-1000.0,0.0003989,7]
[400598045,1767738649535,-502.0,0.00039901,13]
[400598046,1767738649544,-602.64326461,0.0004,5]
[400598047,1767738649554,-201.16863243,0.0004,120]
[400598048,1767738649563,-160.0,0.0004,33]
[400598049,1767738649572,-160.0,0.0004,33]
[400598050,1767738649581,-160.0,0.0004,33]
[400598051,1767738649590,-160.0,0.0004,33]
[400598052,1767738649599,-160.0,0.0004,33]
[400598053,1767738649607,-160.0,0.0004,33]
[400598054,1767738649616,-160.0,0.0004,33]
[400598055,1767738649626,-208.2,0.0004,33]
[400598056,1767738649638,-970.0,0.0004,2]
[400598057,1767738649648,-250.0,0.0004,45]
[400598058,1767738649657,-1000.0,0.0004,120]
[400598059,1767738649666,-250.0,0.0004,45]
[400598060,1767738649676,-250.0,0.0004,45]
[400598061,1767738649686,-152.0,0.0004,120]
[400598062,1767738649695,-152.0,0.0004,120]
[400598063,1767738649706,-717.80445789,0.0004,60]
[400598064,1767738649715,-1806.02206208,0.0004,120]
[400598065,1767738649724,-499.999999,0.0004,120]
[400598066,1767738649737,-1479.41882164,0.0004,30]
[400598067,1767738649746,-3448.92,0.0004,30]
[400598068,1767738649755,-1019.39104929,0.0004,20]
[400598069,1767738649764,-800.57995898,0.0004,120]
[400598070,1767738649773,-1453.81130085,0.0004,30]
[400598071,1767738649783,-497.31948366,0.0004,30]
[400598072,1767738649792,-390.25,0.0004,2]
[400598073,1767738649801,-2721.00869769,0.0004,30]
[400598074,1767738649810,-1194.34640566,0.0004,30]
[400598075,1767738649819,-209.72935748,0.0004,30]
[400598076,1767738649827,-1030.62487221,0.0004,30]
[400598077,1767738649836,-911.43877694,0.0004,30]
[400598078,1767738649846,-1018.0,0.0004,30]
[400598079,1767738649854,-758.4462,0.00040088,30]
[400598080,1767738649863,-1531.04,0.00040111,120]
[400598081,1767738649873,-200.0,0.00040124,2]
[400598082,1767738649881,-207.4,0.00040124,2]
[400598083,1767738649890,-215.0738,0.00040124,2]
[400598084,1767738649899,-223.0315306,0.00040124,2]
[400598085,1767738649908,-231.28369723,0.00040124,2]
[400598086,1767738649917,-239.84119403,0.00040124,2]
[400598087,1767738649927,-248.71531821,0.00040124,2]
[400598088,1767738649936,-257.91778498,0.00040124,2]
[400598089,1767738649945,-267.46074303,0.00040124,2]
[400598090,1767738649954,-277.35679052,0.00040124,2]
[400598091,1767738649963,-1033.6,0.000402,14]
[400598092,1767738649972,-1040.62,0.000402,30]
[400598093,1767738649981,-758.4462,0.00040288,30]
[400598094,1767738649990,-1983.0,0.000403,2]
[400598095,1767738649999,-1000.0,0.000403,120]
[400598096,1767738650008,-613.8,0.00040375,120]
[400598097,1767738650017,-758.4462,0.00040488,30]
[400598098,1767738650028,-160.0,0.000405,35]
[400598099,1767738650038,-160.0,0.000405,35]
[400598100,1767738650047,-250.0,0.000405,45]
[400598101,1767738650056,-242.0,0.000405,45]
[400598102,1767738650065,-250.0,0.000405,45]
[400598103,1767738650074,-498.2117935,0.000405,30]
[400598104,1767738650084,-237.12745582,0.00040569,120]
[400598105,1767738650093,-166.66,0.00040658,30]
[400598106,1767738650103,-500.0,0.00040673,30]
[400598107,1767738650112,-758.4462,0.00040688,30]
[400598108,1767738650121,-152.0,0.000407,120]
[400598109,1767738650130,-152.0,0.000407,120]
[400598110,1767738650139,-153.0,0.00040751,120]
[400598111,1767738650148,-153.0,0.00040751,120]
[400598112,1767738650157,-153.0,0.00040755,120]
[400598113,1767738650166,-153.0,0.00040755,120]
[400598114,1767738650176,-153.0,0.00040851,120]
[400598115,1767738650185,-153.0,0.00040855,120]
[400598116,1767738650193,-758.4462,0.00040888,30]
[400598117,1767738650203,-1163.55,0.000409,14]
[400598118,1767738650212,-4101.09,0.000409,14]
[400598119,1767738650222,-153.0,0.00040951,120]
[400598120,1767738650232,-153.0,0.00040955,120]
[400598121,1767738650243,-970.0,0.00041,30]
[400598122,1767738650251,-6921.24420568,0.00041,30]
[400598123,1767738650260,-250.0,0.00041,45]
[400598124,1767738650270,-250.0,0.00041,45]
[400598125,1767738650279,-486.0,0.00041,2]
[400598126,1767738650288,-214.83253642,0.00041,30]
[400598127,1767738650298,-3448.92,0.00041,30]
[400598128,1767738650306,-1000.0,0.00041,30]
[400598129,1767738650315,-1000.0,0.00041,35]
[400598130,1767738650324,-1018.0,0.00041,30]
[400598131,1767738650333,-300.0,0.00041068,22]
[400598132,1767738650342,-758.4462,0.00041088,30]
[400598133,1767738650352,-151.0,0.00041092,14]
[400598134,1767738650361,-500.0,0.00041095,120]
[400598135,1767738650371,-500.0,0.00041095,120]
[400598136,1767738650381,-500.0,0.00041095,120]
[400598137,1767738650391,-500.0,0.00041095,120]
[400598138,1767738650400,-500.0,0.00041095,2]
[400598139,1767738650409,-500.0,0.00041095,2]
[400598140,1767738650419,-500.0,0.00041095,2]
[400598141,1767738650428,-500.0,0.00041095,2]
[400598142,1767738650437,-500.0,0.00041095,2]
[400598143,1767738650446,-500.0,0.00041095,2]
[400598144,1767738650455,-500.0,0.00041095,2]
[400598145,1767738650464,-500.0,0.00041095,2]
[400598146,1767738650473,-500.0,0.00041095,2]
[400598147,1767738650482,-500.0,0.00041095,2]
[400598148,1767738650492,-500.0,0.00041095,2]
[400598149,1767738650501,-500.0,0.00041095,2]
[400598150,1767738650510,-500.0,0.00041095,2]
[400598151,1767738650519,-500.0,0.00041095,2]
[400598152,1767738650529,-500.0,0.00041095,2]
[400598153,1767738650538,-500.0,0.00041095,2]
[400598154,1767738650547,-500.0,0.00041095,2]
[400598155,1767738650556,-500.0,0.00041095,2]
[400598156,1767738650565,-500.0,0.00041095,2]
[400598157,1767738650575,-500.0,0.00041095,2]
[400598158,1767738650585,-500.0,0.00041095,2]
[400598159,1767738650594,-162.71277919,0.00041095,2]
[400598160,1767738650604,-500.0,0.00041095,2]
[400598161,1767738650614,-500.0,0.00041095,2]
[400598162,1767738650624,-500.0,0.00041095,2]
[400598163,1767738650638,-500.0,0.00041095,2]
[400598164,1767738650647,-500.0,0.00041095,2]
[400598165,1767738650657,-500.0,0.00041095,2]
[400598166,1767738650666,-500.0,0.00041095,2]
[400598167,1767738650679,-500.0,0.00041095,2]
[400598168,1767738650688,-500.0,0.00041095,2]
[400598169,1767738650697,-500.0,0.00041095,2]
[400598170,1767738650709,-500.0,0.00041095,2]
[400598171,1767738650718,-500.0,0.00041095,2]
[400598172,1767738650728,-500.0,0.00041095,2]
[400598173,1767738650738,-500.0,0.00041095,2]
[400598174,1767738650748,-500.0,0.00041095,2]
[400598175,1767738650757,-500.0,0.00041095,2]
[400598176,1767738650767,-500.0,0.00041095,2]
[400598177,1767738650776,-500.0,0.00041095,2]
[400598178,1767738650785,-500.0,0.00041095,2]
[400598179,1767738650794,-500.0,0.00041095,2]
[400598180,1767738650804,-500.0,0.00041095,2]
[400598181,1767738650813,-192.03537295,0.00041095,2]
[400598182,1767738650822,-500.0,0.00041095,10]
[400598183,1767738650831,-500.0,0.00041095,10]
[400598184,1767738650840,-500.0,0.00041095,10]
[400598185,1767738650849,-500.0,0.00041095,10]
[400598186,1767738650858,-500.0,0.00041095,10]
[400598187,1767738650867,-500.0,0.00041095,10]
[400598188,1767738650878,-500.0,0.00041095,10]
[400598189,1767738650887,-500.0,0.00041095,10]
[400598190,1767738650896,-500.0,0.00041095,10]
[400598191,1767738650906,-500.0,0.00041095,10]
[400598192,1767738650915,-500.0,0.00041095,10]
[400598193,1767738650925,-500.0,0.00041095,10]
[400598194,1767738650934,-500.0,0.00041095,10]
[400598195,1767738650944,-500.0,0.00041095,10]
[400598196,1767738650953,-500.0,0.00041095,10]
[400598197,1767738650962,-500.20943884,0.00041095,10]
[400598198,1767738650971,-999.0,0.00041095,120]
[400598199,1767738650981,-600.0,0.00041096,120]
[400598200,1767738650990,-150.0,0.00041096,10]
[400598201,1767738650999,-1000.0,0.00041096,30]
[400598202,1767738651008,-1000.0,0.00041096,30]
[400598203,1767738651017,-1000.0,0.00041096,30]
[400598204,1767738651026,-1000.0,0.00041096,30]
[400598205,1767738651035,-1000.0,0.00041096,30]
[400598206,1767738651045,-1000.0,0.00041096,30]
[400598207,1767738651054,-1000.0,0.00041096,30]
[400598208,1767738651063,-1000.0,0.00041096,30]
[400598209,1767738651072,-1000.0,0.00041096,30]
[400598210,1767738651082,-1000.0,0.00041096,30]
[400598211,1767738651091,-1000.0,0.00041096,30]
[400598212,1767738651100,-1000.0,0.00041096,30]
[400598213,1767738651109,-1000.0,0.00041096,30]
[400598214,1767738651118,-1000.0,0.00041096,30]
[400598215,1767738651127,-1000.0,0.00041096,30]
[400598216,1767738651136,-1000.0,0.00041096,30]
[400598217,1767738651145,-1000.0,0.00041096,30]
[400598218,1767738651153,-1000.0,0.00041096,30]
[400598219,1767738651162,-1000.0,0.00041096,30]
[400598220,1767738651171,-1000.0,0.00041096,30]
[400598221,1767738651179,-1000.0,0.00041096,30]
[400598222,1767738651188,-1000.0,0.00041096,30]
[400598223,1767738651197,-1000.0,0.00041096,30]
[400598224,1767738651206,-1000.0,0.00041096,30]
[400598225,1767738651215,-1000.0,0.00041096,30]
[400598226,1767738651224,-1000.0,0.00041096,30]
[400598227,1767738651233,-1000.0,0.00041096,30]
[400598228,1767738651242,-1000.0,0.00041096,30]
[400598229,1767738651251,-1000.0,0.00041096,30]
[400598230,1767738651261,-1000.0,0.00041096,30]
[400598231,1767738651270,-1000.0,0.00041096,30]
[400598232,1767738651280,-1000.0,0.00041096,30]
[400598233,1767738651289,-1000.0,0.00041096,30]
[400598234,1767738651299,-1000.0,0.00041096,30]
[400598235,1767738651308,-1000.0,0.00041096,30]
[400598236,1767738651318,-1000.0,0.00041096,30]
[400598237,1767738651327,-1000.0,0.00041096,30]
[400598238,1767738651336,-1000.0,0.00041096,30]
[400598239,1767738651346,-1000.0,0.00041096,30]
[400598240,1767738651355,-1000.0,0.00041096,30]
[400598241,1767738651500,-1000.0,0.00041096,30]
[400598242,1767738651510,-1000.0,0.00041096,30]
[400598243,1767738651519,-1000.0,0.00041096,30]
[400598244,1767738651529,-1000.0,0.00041096,30]
[400598245,1767738651538,-1000.0,0.00041096,30]
[400598246,1767738651547,-1000.0,0.00041096,30]
[400598247,1767738651556,-1000.0,0.00041096,30]
[400598248,1767738651565,-1000.0,0.00041096,30]
[400598249,1767738651574,-1000.0,0.00041096,30]
[400598250,1767738651583,-1000.0,0.00041096,30]
[400598251,1767738651593,-1000.0,0.00041096,30]
[400598252,1767738651602,-1000.0,0.00041096,30]
[400598253,1767738651611,-1000.0,0.00041096,30]
[400598254,1767738651621,-1000.0,0.00041096,30]
[400598255,1767738651633,-1000.0,0.00041096,30]
[400598256,1767738651643,-1000.0,0.00041096,30]
[400598257,1767738651653,-1000.0,0.00041096,30]
[400598258,1767738651662,-1000.0,0.00041096,30]
[400598259,1767738651672,-1000.0,0.00041096,30]
[400598260,1767738651681,-1000.0,0.00041096,30]
[400598261,1767738651691,-1000.0,0.00041096,30]
[400598262,1767738651701,-1000.0,0.00041096,30]
[400598263,1767738651710,-1000.0,0.00041096,30]
[400598264,1767738651720,-1000.0,0.00041096,30]
[400598265,1767738651731,-1000.0,0.00041096,30]
[400598266,1767738651740,-1000.0,0.00041096,30]
[400598267,1767738651750,-1000.0,0.00041096,30]
[400598268,1767738651759,-1000.0,0.00041096,30]
[400598269,1767738651768,-1000.0,0.00041096,30]
[400598270,1767738651777,-1000.0,0.00041096,30]
[400598271,1767738651787,-1000.0,0.00041096,30]
[400598272,1767738651796,-1000.0,0.00041096,30]
[400598273,1767738651805,-1000.0,0.00041096,30]
[400598274,1767738651815,-1000.0,0.00041096,30]
[400598275,1767738651824,-1000.0,0.00041096,30]
[400598276,1767738651833,-1000.0,0.00041096,30]
[400598277,1767738651843,-1000.0,0.00041096,30]
[400598278,1767738651852,-1000.0,0.00041096,30]
[400598279,1767738651861,-1000.0,0.00041096,30]
[400598280,1767738651871,-1000.0,0.00041096,30]
[400598281,1767738651880,-1000.0,0.00041096,30]
[400598282,1767738651889,-1000.0,0.00041096,30]
[400598283,1767738651899,-1000.0,0.00041096,30]
[400598284,1767738651908,-1000.0,0.00041096,30]
[400598285,1767738651917,-1000.0,0.00041096,30]
[400598286,1767738651926,-1000.0,0.00041096,30]
[400598287,1767738651935,-1000.0,0.00041096,30]
[400598288,1767738651944,-1000.0,0.00041096,30]
[400598289,1767738651953,-1000.0,0.00041096,30]
[400598290,1767738651962,-1000.0,0.00041096,30]
[400598291,1767738651971,-1000.0,0.00041096,30]
[400598292,1767738651981,-1000.0,0.00041096,30]
[400598293,1767738651990,-1000.0,0.00041096,30]
[400598294,1767738651999,-1000.0,0.00041096,30]
[400598295,1767738652008,-1000.0,0.00041096,30]
[400598296,1767738652018,-1000.0,0.00041096,30]
[400598297,1767738652027,-1000.0,0.00041096,30]
[400598298,1767738652036,-1000.0,0.00041096,30]
[400598299,1767738652046,-1000.0,0.00041096,30]
[400598300,1767738652055,-1000.0,0.00041096,30]
[400598301,1767738652064,-828.0,0.00041096,13]
[400598302,1767738652074,-1061.5,0.00041096,91]
[400598303,1767738652083,-966.5,0.00041096,56]
[400598304,1767738652094,-159.66350355,0.000411,120]
[400598305,1767738652103,-159.66350355,0.000411,120]
[400598306,1767738652113,-159.66350355,0.000411,120]
[400598307,1767738652124,-159.66350355,0.000411,120]
[400598308,1767738652134,-159.66350355,0.000411,120]
[400598309,1767738652144,-159.66350355,0.000411,120]
[400598310,1767738652153,-159.66350355,0.000411,120]
[400598311,1767738652163,-159.66350355,0.000411,120]
[400598312,1767738652172,-159.66350355,0.000411,120]
[400598313,1767738652181,-159.66350355,0.000411,120]
[400598314,1767738652190,-159.66350355,0.000411,120]
[400598315,1767738652200,-159.66350355,0.000411,120]
[400598316,1767738652209,-159.66350355,0.000411,120]
[400598317,1767738652218,-159.66350355,0.000411,120]
[400598318,1767738652227,-159.66350355,0.000411,120]
[400598319,1767738652237,-159.66350355,0.000411,120]
[400598320,1767738652246,-159.66350355,0.000411,120]
[400598321,1767738652255,-159.66350355,0.000411,120]
[400598322,1767738652265,-159.66350355,0.000411,120]
[400598323,1767738652275,-159.66,0.000411,120]
[400598324,1767738652284,-372.54817495,0.000411,120]
[400598325,1767738652294,-372.54817495,0.000411,120]
[400598326,1767738652303,-372.54817495,0.000411,120]
[400598327,1767738652313,-372.54817495,0.000411,120]
[400598328,1767738652323,-372.54817495,0.000411,120]
[400598329,1767738652333,-372.54817495,0.000411,120]
[400598330,1767738652342,-372.54817495,0.000411,120]
[400598331,1767738652351,-372.54817495,0.000411,120]
[400598332,1767738652361,-372.54817495,0.000411,120]
[400598333,1767738652371,-372.54817495,0.000411,120]
[400598334,1767738652380,-372.54817495,0.000411,120]
[400598335,1767738652390,-372.54817495,0.000411,120]
[400598336,1767738652399,-372.54817495,0.000411,120]
[400598337,1767738652408,-372.54817495,0.000411,120]
[400598338,1767738652418,-372.54817495,0.000411,120]
[400598339,1767738652427,-372.54817495,0.000411,120]
[400598340,1767738652436,-372.54817495,0.000411,120]
[400598341,1767738652446,-372.54817495,0.000411,120]
[400598342,1767738652457,-372.54817495,0.000411,120]
[400598343,1767738652467,-372.54,0.000411,120]
[400598344,1767738652477,-1000.0,0.000411,7]
[400598345,1767738652487,-204.697972,0.000411,120]
[400598346,1767738652496,-151.0,0.000411,120]
[400598347,1767738652505,-151.0,0.000411,120]
[400598348,1767738652515,-151.0,0.000411,120]
[400598349,1767738652524,-151.0,0.000411,120]
[400598350,1767738652533,-192.614882,0.000411,120]
[400598351,1767738652543,-154.98,0.00041136,14]
[400598352,1767738652552,-1033.6,0.000412,14]
[400598353,1767738652561,-920.62839814,0.00041288,30]
[400598354,1767738652570,-758.4462,0.00041288,30]
[400598355,1767738652580,-154.98,0.00041318,14]
[400598356,1767738652590,-502.0,0.00041333,15]
[400598357,1767738652600,-1000.0,0.0004137,30]
[400598358,1767738652610,-1994.8,0.00041394,30]
[400598359,1767738652620,-152.0,0.000414,120]
[400598360,1767738652631,-920.62839814,0.00041452,30]
[400598361,1767738652642,-758.4462,0.00041488,30]
[400598362,1767738652651,-287.61899177,0.00041493,2]
[400598363,1767738652660,-152.0,0.00041497,4]
[400598364,1767738652671,-166.66,0.00041497,30]
[400598365,1767738652680,-160.0,0.000415,39]
[400598366,1767738652690,-160.0,0.000415,39]
[400598367,1767738652700,-250.0,0.000415,45]
[400598368,1767738652709,-250.0,0.000415,45]
[400598369,1767738652719,-152.0,0.000415,120]
[400598370,1767738652731,-700.0,0.00041573,60]
[400598371,1767738652741,-3000.0,0.00041573,60]
[400598372,1767738652751,-600.0,0.00041644,120]
[400598373,1767738652761,-920.62839814,0.00041644,30]
[400598374,1767738652771,-1000.0,0.00041644,30]
[400598375,1767738652780,-758.4462,0.00041688,30]
[400598376,1767738652790,-1353.9,0.00041692,30]
[400598377,1767738652800,-384.68,0.000418,120]
[400598378,1767738652809,-920.62839814,0.00041808,30]
[400598379,1767738652819,-1000.0,0.00041815,90]
[400598380,1767738652829,-800.0,0.00041847,60]
[400598381,1767738652839,-164.0,0.00041849,11]
[400598382,1767738652850,-833.0,0.00041855,11]
[400598383,1767738652859,-833.0,0.00041878,11]
[400598384,1767738652868,-833.0,0.00041882,11]
[400598385,1767738652878,-758.4462,0.00041888,30]
[400598386,1767738652888,-500.0,0.00041899,30]
[400598387,1767738652896,-1163.55,0.000419,14]
[400598388,1767738652906,-94288.45036847,0.000419,14]
[400598389,1767738655028,-9943.88196677,0.00017902,2]
[400598390,1767738655037,-166.049294,0.000247,7]
[400598391,1767738655047,-575.574485,0.00031507,31]
[400598392,1767738655056,-166.049294,0.00033,31]
[400598393,1767738655065,-88865.9244831,0.000419,14]
[400598394,1767738655136,-1572.94417434,0.000419,14]
[400598395,1767738655194,-575.574485,0.00033,31]
[400598396,1767738655203,-166.049294,0.000411,120]
[400598397,1767738655213,-2.463421,0.000419,14]
[400598398,1767738655224,-6684.12710462,0.000419,14]
[400598399,1767738655233,-337.55478427,0.000419,7]
[400598400,1767738655244,-662.44521573,0.000419,7]
[400598401,1767738655253,-1000.0,0.00041918,30]
[400598402,1767738655262,-200.0,0.00041918,10]
[400598403,1767738655271,-920.62839814,0.00041973,30]
[400598404,1767738655281,-970.0,0.00042,30]
[400598405,1767738655290,-486.0,0.00042,30]
[400598406,1767738655299,-848.36086612,0.00042,120]
[400598407,1767738655308,-163.9650413,0.00042,120]
[400598408,1767738655318,-498.47706503,0.00042,30]
[400598409,1767738655328,-154.91770531,0.00042,120]
[400598410,1767738655339,-156.59967977,0.00042,120]
[400598411,1767738655348,-1130.40768375,0.00042,30]
[400598412,1767738655358,-1018.0,0.00042,30]
[400598413,1767738655368,-1357.98705815,0.0004201,2]
[400598414,1767738655378,-221.26619227,0.0004201,30]
[400598415,1767738655387,-500.0,0.00042082,60]
[400598416,1767738655396,-500.0,0.00042082,60]
[400598417,1767738655407,-152.0,0.000421,120]
[400598418,1767738655417,-582.0,0.000421,3]
[400598419,1767738655427,-151.0,0.000421,120]